bitfinex/quotes_ETHUSD_20250823
["timestamp","ask_amount","ask_price","bid_price","bid_amount"]
[1755935306217,0.66,4717.6,4714.4,1.63]
[1755935306218,0.3099,4716.9,4714.4,1.63]
[1755935306423,5.312,4716.9,4715.7,0.0763]
[1755935306818,1.63,4716.9,4715.7,0.0763]
[1755935307054,1.63,4716.9,4716.8,0.1421]
[1755935307343,5.315,4716.9,4716.8,0.1421]
[1755935308218,10.2692,4716.9,4716.8,0.02]
[1755935309715,15.3632,4716.9,4716.8,0.02]
[1755935311661,11.6782,4716.9,4716.8,0.02]
[1755935311820,12.3642,4716.9,4716.8,0.02]
[1755935312155,15.3642,4716.9,4716.8,0.02]
[1755935312650,15.3672,4716.9,4716.8,0.02]
[1755935312814,11.6782,4716.9,4716.8,0.02]
[1755935313210,15.3662,4716.9,4716.8,0.02]
[1755935314069,2.89,4716.6,4714.8,0.02]
[1755935314214,0.3099,4715.9,4714.8,0.02]
[1755935314416,9.2979,4715.9,4714.8,0.02]
[1755935314631,9.2969,4715.9,4714.8,0.02]
[1755935314829,6.0527,4715.9,4714.8,0.02]
[1755935315048,6.39795,4715.9,4714.8,0.02]
[1755935315316,5.64535,4715.9,4714.8,0.02]
[1755935315837,9.65325,4715.9,4714.8,0.02]
[1755935316370,10.10605,4715.9,4714.8,0.02]
[1755935316716,6.40805,4715.9,4714.8,0.02]
[1755935316949,10.10405,4715.9,4714.8,0.02]
[1755935317439,10.2609849,4715.9,4714.8,0.02]
[1755935318943,10.2609849,4715.9,4714.8,0.024]
[1755935319335,3.66,4715.8,4714.8,0.024]
[1755935319571,0.3099,4714.9,4714.8,0.024]
[1755935319752,8.6339,4714.9,4714.8,0.024]
[1755935319957,8.324,4714.9,4714.8,0.024]
[1755935320140,8.4304,4714.9,4714.8,0.024]
[1755935320331,8.4294,4714.9,4714.8,0.1781]
[1755935321540,8.4304,4714.9,4714.8,0.1781]
[1755935321735,9.28304566,4714.9,4714.8,0.024]
[1755935322036,8.97314566,4714.9,4714.8,0.024]
[1755935322450,4.7364,4714.9,4714.8,0.1781]
[1755935322735,5.4284,4714.9,4714.8,0.1781]
[1755935323273,5.4284,4714.9,4714.8,0.024]
[1755935324073,5.4284,4714.9,4714.8,0.1781]
[1755935324689,1.7364,4714.9,4714.8,0.1781]
[1755935324986,1.63,4714.9,4714.8,0.2744]
[1755935325201,5.32,4714.9,4714.8,0.2744]
[1755935325375,1.63,4714.9,4714.8,0.2744]
[1755935325575,5.32,4714.9,4714.8,0.2744]
[1755935326194,1.63,4714.9,4714.8,0.2744]
[1755935326490,3.689,4715.0,4714.8,0.2744]
[1755935326662,0.1064,4715.9,4714.9,0.1064]
[1755935326663,3.689,4715.1,4714.9,0.1064]
[1755935326862,3.689,4715.2,4715.0,0.1541]
[1755935327081,3.688,4715.2,4715.1,0.0963]
[1755935327260,3.688,4715.2,4715.1,0.2504]
[1755935327855,3.687,4715.5,4715.1,0.2504]
[1755935328053,3.687,4715.5,4715.2,0.0963]
[1755935328354,3.687,4715.5,4715.4,0.2605]
[1755935328789,3.687,4715.5,4715.4,0.3568]
[1755935329705,0.02,4716.8,4715.4,0.2605]
[1755935329868,0.02,4716.8,4715.5,0.0963]
[1755935330075,0.02,4716.8,4716.7,0.2605]
[1755935330805,0.02,4716.8,4716.7,0.3568]
[1755935333779,0.02,4716.8,4716.7,0.2605]
[1755935335886,0.02,4716.8,4716.7,0.3568]
[1755935336320,0.02,4716.8,4716.7,0.2605]
[1755935339224,0.02,4716.8,4716.7,0.3568]
[1755935340025,0.02,4716.8,4716.7,0.2605]
[1755935340444,0.02,4716.8,4716.7,0.1064]
[1755935341831,0.02,4716.8,4716.7,0.2605]
[1755935342338,0.02,4716.8,4716.7,0.3568]
[1755935343703,0.02,4716.8,4716.7,1.0168]
[1755935345203,0.02,4716.8,4716.7,1.48588]
[1755935346619,0.021,4717.8,4716.7,1.48588]
[1755935346620,0.021,4717.8,4717.1,0.66]
[1755935346817,0.021,4717.8,4717.7,0.8141]
[1755935347461,0.001,4718.9,4718.7,0.66]
[1755935347607,0.001,4718.9,4718.8,2.0201]
[1755935347810,0.001,4718.9,4718.8,6.2601]
[1755935348513,0.001,4718.9,4718.8,2.5641]
[1755935348717,0.3075,4718.9,4717.4,1.63]
[1755935348934,0.7797,4718.9,4717.5,0.163]
[1755935349831,0.4722,4718.8,4717.5,0.163]
[1755935352256,0.4722,4718.8,4717.8,0.02]
[1755935355437,0.001,4718.9,4717.8,0.02]
[1755935355755,0.4722,4718.8,4717.8,2.161878]
[1755935356546,0.4722,4718.8,4718.7,0.1056]
[1755935356867,0.7787,4718.8,4718.7,0.1056]
[1755935359536,0.3065,4718.8,4718.7,0.1056]
[1755935360164,0.7722,4718.8,4718.7,0.1056]
[1755935361151,0.7722,4718.8,4717.8,0.02]
[1755935361341,0.4657,4718.7,4718.3,0.1056]
[1755935361676,0.3132,4718.4,4718.3,0.1056]
[1755935361974,0.7789,4718.4,4718.3,0.1056]
[1755935362275,0.7789,4718.4,4717.8,0.02]
[1755935362455,0.4657,4718.3,4718.1,0.1056]
[1755935362785,0.3132,4718.2,4718.1,0.1056]
[1755935363272,0.3132,4718.2,4717.8,0.02]
[1755935363273,0.7789,4718.2,4717.8,0.1256]
[1755935363470,0.4657,4718.1,4717.8,0.1256]
[1755935363769,0.3132,4717.9,4717.8,0.1256]
[1755935364382,0.7789,4717.9,4717.8,0.1256]
[1755935365692,0.7789,4717.9,4717.8,0.02]
[1755935368194,0.5713,4718.5,4717.8,0.1741]
[1755935368359,0.4657,4718.5,4717.8,0.2837]
[1755935368697,0.4657,4718.5,4718.3,0.1056]
[1755935368858,0.001,4718.9,4718.3,0.1056]
[1755935368859,0.7789,4718.4,4718.3,0.1056]
[1755935370361,0.7789,4718.4,4718.0,50.0]
[1755935370598,0.5713,4718.3,4718.0,50.0]
[1755935370794,0.3132,4718.1,4718.0,50.0]
[1755935371091,0.7789,4718.1,4718.0,50.0]
[1755935374163,1.23555,4718.1,4718.0,50.0]
[1755935374365,0.7789,4718.1,4718.0,50.0]
[1755935374775,0.4657,4718.1,4718.0,50.0]
[1755935374993,0.7789,4718.1,4718.0,50.0]
[1755935377581,0.8845,4718.1,4718.0,50.0]
[1755935378403,0.1056,4718.4,4718.2,49.1155]
[1755935378572,0.3132,4718.3,4718.2,49.1155]
[1755935379569,0.1056,4718.6,4718.2,49.1155]
[1755935380791,0.1056,4718.6,4718.5,0.3005]
[1755935381110,0.001,4718.9,4718.5,0.3005]
[1755935381271,0.001,4718.9,4718.5,2.442378]
[1755935381467,0.001,4718.9,4718.6,0.4665]
[1755935381774,0.001,4718.9,4718.8,0.3005]
[1755935382582,0.001,4718.9,4718.4,3.675]
[1755935383004,0.3132,4718.5,4718.3,0.1056]
[1755935383378,0.001,4718.9,4718.4,0.3005]
[1755935383906,0.4667,4718.9,4718.4,0.3005]
[1755935384799,0.001,4718.9,4718.4,0.3005]
[1755935386470,0.3132,4718.5,4718.3,0.1056]
[1755935386872,0.001,4718.9,4718.4,0.3005]
[1755935389004,0.001,4718.9,4718.4,0.7393]
[1755935389585,0.001,4718.9,4718.4,0.3005]
[1755935389777,0.001,4718.9,4718.5,0.4388]
[1755935389979,0.001,4718.9,4718.8,0.3106]
[1755935390920,0.001,4718.9,4718.8,0.855]
[1755935391524,0.001,4718.9,4718.8,1.3067]
[1755935391882,0.001,4718.9,4718.8,4.9687]
[1755935393214,0.001,4718.9,4718.8,5.6287]
[1755935393602,0.001,4718.9,4718.8,5.6277]
[1755935398926,0.001,4718.9,4718.8,1.3067]
[1755935399159,0.001,4718.9,4718.8,4.509]
[1755935399504,0.001,4718.9,4718.8,4.0702]
[1755935399824,0.291,4718.9,4718.8,3.7616]
[1755935400129,0.001,4718.9,4718.8,3.7616]
[1755935400722,0.001,4718.9,4718.8,4.0722]
[1755935400924,0.001,4718.9,4718.8,4.47942]
[1755935401237,0.001,4718.9,4718.8,54.03372]
[1755935402236,0.001,4718.9,4718.8,54.69372]
[1755935402605,0.001,4718.9,4718.8,57.69372]
[1755935403435,0.001,4718.9,4718.8,54.03772]
[1755935403635,0.001,4718.9,4718.8,57.69372]
[1755935404901,0.001,4718.9,4718.8,57.79828934]
[1755935405323,0.001,4718.9,4718.8,57.69372]
[1755935406205,0.001,4718.9,4718.8,87.80259313]
[1755935406407,0.001,4719.2,4718.9,3.66]
[1755935406601,0.001,4719.2,4719.1,3.9706]
[1755935406808,0.001,4719.2,4719.1,30.2132]
[1755935407036,0.001,4719.2,4719.1,12.66]
[1755935408734,0.001,4719.2,4719.1,9.799]
[1755935409042,0.001,4719.2,4719.1,6.144]
[1755935409251,0.001,4719.2,4719.1,11.940878]
[1755935411325,0.001,4719.7,4719.1,11.940878]
[1755935411326,0.001,4719.7,4719.3,3.66]
[1755935411524,0.001,4719.7,4719.6,24.01233989]
[1755935411757,0.001,4719.7,4719.6,47.32033989]
[1755935411956,0.001,4719.7,4719.6,28.10513989]
[1755935412119,0.001,4719.7,4719.6,6.551278]
[1755935412315,0.001,4719.7,4719.6,8.0624]
[1755935414057,0.001,4719.9,4719.7,33.66]
[1755935414256,0.001,4720.7,4719.9,0.66]
[1755935414454,0.001,4720.7,4720.6,0.9706]
[1755935414654,0.001,4720.7,4720.6,7.6266]
[1755935414858,0.001,4720.7,4720.6,8.82806]
[1755935416064,0.291,4720.7,4720.6,4.42266]
[1755935416221,0.291,4720.7,4720.6,4.315]
[1755935416421,0.291,4720.7,4720.6,0.66]
[1755935416622,0.291,4720.7,4720.6,4.398812]
[1755935416822,0.001,4720.7,4720.6,4.314]
[1755935417055,0.001,4720.7,4720.6,4.7454]
[1755935417255,0.001,4720.7,4720.6,5.056]
[1755935417463,0.001,4720.7,4720.6,5.4948]
[1755935418867,0.001,4720.7,4720.6,8.4948]
[1755935419038,0.001,4720.7,4720.6,18.4948]
[1755935419237,0.001,4720.7,4720.6,8.4948]
[1755935420453,0.001,4720.7,4720.6,8.056]
[1755935420659,0.3042,4720.7,4720.6,4.0824]
[1755935421057,0.3042,4720.7,4720.6,4.7424]
[1755935421262,0.3042,4720.7,4720.6,4.848]
[1755935422068,0.3042,4720.7,4720.6,4.85]
[1755935422230,0.7366,4720.7,4720.6,4.85]
[1755935422431,0.7366,4720.7,4720.6,3.7566]
[1755935423052,0.7366,4720.7,4720.6,3.7586]
[1755935424231,0.7366,4720.7,4720.6,0.1056]
[1755935424435,0.7366,4720.7,4720.6,3.7566]
[1755935425630,0.7366,4720.7,4720.6,0.1056]
[1755935425966,0.7366,4720.7,4720.6,3.7556]
[1755935427243,0.7366,4720.7,4720.6,0.1056]
[1755935428459,0.7366,4720.7,4720.6,49.2211]
[1755935429865,0.7366,4720.7,4720.6,49.1155]
[1755935431152,0.8422,4720.7,4720.6,49.1155]
[1755935431342,2.4702,4720.7,4720.6,49.1155]
[1755935431546,3.02022,4720.7,4720.6,49.1155]
[1755935432770,6.68022,4720.7,4720.6,49.1155]
[1755935436052,10.32922,4720.7,4720.6,49.1155]
[1755935438178,6.02022,4720.7,4720.6,49.1155]
[1755935442391,0.1066,4720.7,4720.6,49.4095]
[1755935442590,0.001,4720.7,4720.6,55.41122589]
[1755935442897,0.001,4720.7,4720.6,55.2351]
[1755935452214,0.001,4720.7,4720.6,51.5891]
[1755935452381,0.001,4720.7,4720.6,55.2531]
[1755935452576,0.001,4720.7,4720.6,57.500578]
[1755935458788,0.001,4720.7,4720.6,58.151578]
[1755935459191,0.001,4720.7,4720.6,61.151578]
[1755935460913,0.00066072,4721.1,4720.7,3.66]
[1755935461088,0.00066072,4721.1,4721.0,0.9509]
[1755935461418,0.00066072,4721.1,4721.0,7.7115]
[1755935461789,0.00066072,4721.1,4721.0,8.1643]
[1755935462315,0.00066072,4721.1,4721.0,4.5093]
[1755935462494,0.00066072,4721.1,4721.0,8.1643]
[1755935462694,0.00066072,4721.1,4721.0,10.306178]
[1755935462906,0.00066072,4721.1,4721.0,5.623185]
[1755935463082,0.29016072,4721.1,4721.0,2.332285]
[1755935463288,0.00066072,4721.1,4721.0,5.985285]
[1755935464283,0.00066072,4721.1,4721.0,6.276185]
[1755935465516,0.00066072,4721.1,4721.0,2.623185]
[1755935465821,0.00066072,4721.1,4721.0,6.276185]
[1755935466192,0.00066072,4721.1,4721.0,6.936185]
[1755935467098,0.00166072,4721.1,4721.0,6.936185]
[1755935469034,0.29116072,4721.1,4721.0,2.332285]
[1755935469204,0.29116072,4721.1,4721.0,5.983285]
[1755935469604,0.00166072,4721.1,4721.0,6.274185]
[1755935470799,0.00166072,4721.1,4721.0,6.934185]
[1755935471007,0.00166072,4721.1,4721.0,7.386985]
[1755935471818,0.00166072,4721.1,4721.0,6.934185]
[1755935472120,0.00166072,4721.1,4721.0,3.283185]
[1755935472322,0.00166072,4721.1,4721.0,5.979285]
[1755935472528,0.00166072,4721.1,4721.0,5.978285]
[1755935472529,0.29116072,4721.1,4721.0,5.978285]
[1755935474618,0.29116072,4721.1,4721.0,5.977285]
[1755935476100,0.00166072,4721.1,4721.0,6.268185]
[1755935476801,0.00166072,4721.1,4721.0,9.928185]
[1755935477010,0.00166072,4721.1,4721.0,10.380985]
[1755935479278,0.00166072,4721.1,4721.0,6.735985]
[1755935479408,0.00166072,4721.1,4721.0,10.381985]
[1755935479740,0.00166072,4721.1,4721.0,59.497485]
[1755935481557,0.00166072,4721.1,4721.0,63.757485]
[1755935482755,0.00166072,4721.1,4721.0,63.86126645]
[1755935483455,0.00166072,4721.1,4721.0,59.76246645]
[1755935483652,0.00166072,4721.1,4721.0,63.40146645]
[1755935483958,0.00166072,4721.1,4721.0,63.83407485]
[1755935484364,0.00166072,4721.1,4721.0,63.83807485]
[1755935485056,0.00166072,4721.1,4721.0,63.730685]
[1755935486662,0.00166072,4721.1,4721.0,59.470685]
[1755935487537,0.00166072,4721.1,4721.0,55.830685]
[1755935487860,0.00166072,4721.1,4721.0,60.490685]
[1755935488161,0.00166072,4721.1,4721.0,64.125685]
[1755935488866,0.00166072,4721.1,4721.0,64.553685]
[1755935491950,0.001,4721.1,4721.0,64.553685]
[1755935492563,0.001,4721.1,4721.0,73.55892964]
[1755935496241,0.001,4721.1,4721.0,69.49592964]
[1755935496572,0.001,4721.1,4721.0,73.12592964]
[1755935496970,0.7671,4721.1,4721.0,60.169785]
[1755935497134,0.7671,4721.1,4721.0,60.084978]
[1755935498971,0.001,4721.1,4721.0,57.114978]
[1755935499174,0.001,4721.1,4721.0,64.050878]
[1755935499540,0.001,4721.1,4721.0,64.135684]
[1755935500042,0.2931,4721.1,4721.0,63.829784]
[1755935501842,0.001,4721.1,4721.0,64.135684]
[1755935502485,0.001,4721.1,4721.0,64.563684]
[1755935503855,0.001,4721.1,4721.0,64.135684]
[1755935504247,0.001,4721.1,4721.0,60.505684]
[1755935504743,0.001,4721.1,4721.0,64.135684]
[1755935505177,0.2931,4721.1,4721.0,63.829784]
[1755935505470,0.2931,4721.1,4721.0,60.199784]
[1755935505678,0.7671,4721.1,4721.0,63.829784]
[1755935505848,0.2931,4721.1,4721.0,63.829784]
[1755935508785,0.7648,4721.1,4721.0,63.829784]
[1755935509848,0.2931,4721.1,4721.0,63.829784]
[1755935510895,0.001,4721.1,4721.0,63.829784]
[1755935511776,0.308,4721.1,4721.0,63.829784]
[1755935512267,0.001,4721.1,4721.0,64.143684]
[1755935512982,0.001,4721.1,4721.0,64.606584]
[1755935514280,0.001,4721.1,4721.0,64.143684]
[1755935514487,0.001,4721.1,4721.0,64.606584]
[1755935516689,0.001,4721.1,4721.0,73.14892864]
[1755935516889,0.001,4721.1,4721.0,73.61182864]
[1755935517893,0.001,4721.1,4721.0,73.14892864]
[1755935520812,0.001,4721.1,4721.0,69.51892864]
[1755935521103,0.001,4721.1,4721.0,73.14892864]
[1755935521603,0.001,4721.1,4721.0,72.83502864]
[1755935521807,0.308,4721.1,4721.0,72.83502864]
[1755935522110,0.001,4721.2,4721.1,52.4675]
[1755935522263,0.001,4721.2,4721.1,56.85098132]
[1755935522778,0.001,4721.2,4721.1,57.32268132]
[1755935522979,0.001,4721.2,4721.1,57.63658132]
[1755935524460,0.001,4721.2,4721.1,58.09948132]
[1755935526316,0.4717,4723.5,4721.2,33.66]
[1755935526495,0.4717,4724.0,4722.1,30.66]
[1755935526666,0.4717,4724.0,4722.7,9.97914464]
[1755935526861,0.4717,4724.0,4722.7,16.71374464]
[1755935527061,0.4717,4724.0,4722.7,17.17664464]
[1755935527307,0.4717,4724.0,4722.7,18.8399091]
[1755935527472,0.4717,4724.0,4722.7,19.3116091]
[1755935527874,0.327,4722.8,4722.7,5.95496446]
[1755935528196,0.327,4722.8,4722.7,9.58396446]
[1755935530269,0.02,4722.8,4722.7,9.89786446]
[1755935530475,0.02,4722.8,4722.7,10.36076446]
[1755935530873,0.02,4723.8,4722.8,3.66]
[1755935531071,0.02,4723.8,4723.7,0.66]
[1755935531277,0.02,4723.8,4723.7,6.0226]
[1755935531502,0.02,4723.8,4723.7,9.0226]
[1755935531704,0.7987,4723.8,4723.7,5.3936]
[1755935531914,0.7987,4723.8,4723.7,10.03366]
[1755935532117,0.7987,4723.8,4723.7,6.40466]
[1755935532319,0.7987,4723.8,4723.7,9.56096]
[1755935532983,0.327,4723.8,4723.7,9.720131]
[1755935533187,0.02,4723.8,4723.7,9.720131]
[1755935533587,0.327,4723.8,4723.7,9.720131]
[1755935535025,0.02,4723.8,4723.7,9.720131]
[1755935535389,0.327,4723.8,4723.7,9.720131]
[1755935535594,0.327,4723.8,4723.7,10.191831]
[1755935537745,0.02,4723.8,4723.7,6.563831]
[1755935538040,0.02,4723.8,4723.7,10.190831]
[1755935538447,0.02,4723.8,4723.7,10.956131]
[1755935539106,0.02,4723.8,4723.7,10.504731]
[1755935540418,0.02,4723.8,4723.7,14.764731]
[1755935541239,0.02,4723.8,4723.7,14.450831]
[1755935543650,0.4897,4723.8,4723.7,6.37166]
[1755935543853,0.4897,4723.8,4723.7,5.8323]
[1755935544347,0.4897,4723.8,4723.7,5.3606]
[1755935545907,0.4897,4723.8,4723.7,5.3596]
[1755935546647,0.4897,4723.8,4723.7,1.7336]
[1755935546850,0.4897,4723.8,4723.7,5.3596]
[1755935548121,0.4897,4723.8,4723.7,1.7336]
[1755935548646,0.4897,4723.8,4723.7,5.3596]
[1755935548807,0.4897,4723.8,4723.7,3.7316]
[1755935550153,0.4907,4723.8,4723.7,3.7316]
[1755935550344,0.001,4724.3,4723.8,48.3168]
[1755935550516,0.001,4724.3,4723.9,3.626]
[1755935551018,0.3027,4724.0,4723.9,3.626]
[1755935551407,0.3027,4724.0,4723.9,3.7316]
[1755935554443,0.001,4724.3,4723.9,3.7316]
[1755935554640,0.001,4724.3,4723.9,5.15588776]
[1755935554844,0.001,4724.3,4724.2,0.1056]
[1755935555042,0.001,4724.3,4724.2,4.0229]
[1755935555243,0.001,4724.3,4724.2,4.4743]
[1755935555551,0.001,4724.3,4724.2,4.559062]
[1755935555755,0.001,4724.3,4724.2,6.70094]
[1755935556659,0.001,4724.3,4724.2,7.36094]
[1755935557228,0.1,4724.3,4724.2,2.33224]
[1755935557536,0.1,4724.3,4724.2,3.816362]
[1755935557736,0.1,4724.3,4724.2,0.190362]
[1755935558045,0.1,4724.3,4724.2,3.7316]
[1755935560750,0.001,4724.3,4724.2,4.0229]
[1755935561055,0.001,4724.3,4724.2,6.164778]
[1755935561357,0.001,4724.3,4724.2,5.873478]
[1755935562041,0.001,4724.3,4724.2,3.7316]
[1755935562359,0.1,4724.3,4724.2,3.7316]
[1755935562536,0.1,4724.3,4724.2,3.7306]
[1755935566558,0.001,4724.3,4724.2,4.0219]
[1755935566762,0.001,4724.3,4724.2,4.4733]
[1755935567135,0.001,4724.8,4724.3,48.3158]
[1755935567333,0.001,4724.8,4724.4,3.625]
[1755935567670,0.001,4724.8,4724.7,0.1056]
[1755935567832,0.0034,4724.8,4724.7,3.7306]
[1755935568038,0.001,4724.8,4724.7,3.7306]
[1755935571482,0.249,4724.8,4724.7,3.7296]
[1755935571688,0.0034,4724.8,4724.7,3.7296]
[1755935572857,0.001,4724.8,4724.7,3.7296]
[1755935573275,0.1,4724.8,4724.7,3.7296]
[1755935574555,0.1,4724.8,4724.7,0.1056]
[1755935574758,0.1,4724.8,4724.7,3.7296]
[1755935576173,0.1,4724.8,4724.7,0.1056]
[1755935576367,0.1,4724.8,4724.7,3.7296]
[1755935582289,0.001,4725.3,4724.8,48.2158]
[1755935582758,0.001,4725.3,4725.0,0.1056]
[1755935582965,0.001,4725.3,4725.2,0.1056]
[1755935583711,0.1,4725.3,4725.2,0.1056]
[1755935583998,0.1,4725.3,4725.2,3.7286]
[1755935584806,0.2486,4725.3,4725.2,3.7286]
[1755935585008,0.1,4725.3,4725.2,3.7286]
[1755935585504,0.1,4725.3,4725.2,0.1056]
[1755935586504,0.001,4725.3,4725.2,0.1056]
[1755935587197,0.001,4725.3,4725.2,0.3926]
[1755935587494,0.1,4725.3,4725.2,0.1056]
[1755935587872,0.1,4725.3,4725.1,3.622]
[1755935588683,0.1,4725.3,4725.0,0.1056]
[1755935588909,9.15384464,4725.2,4724.8,48.2358]
[1755935589106,0.7595,4724.9,4724.8,48.2358]
[1755935589401,0.9076,4724.9,4724.8,48.2358]
[1755935590417,0.2476,4724.9,4724.8,48.2358]
[1755935590618,0.0995,4724.9,4724.8,48.2358]
[1755935591619,0.2476,4724.9,4724.8,48.2358]
[1755935591791,1.27858446,4724.9,4724.8,48.2358]
[1755935592686,1.13048446,4724.9,4724.8,48.2358]
[1755935593718,4.75248446,4724.9,4724.8,48.2358]
[1755935593925,4.75248446,4724.9,4724.8,48.2078]
[1755935594111,3.622,4724.9,4724.8,48.2078]
[1755935594321,3.622,4725.2,4724.8,48.9522]
[1755935594617,0.001,4725.3,4724.9,0.4574]
[1755935594826,0.001,4725.3,4725.2,0.287]
[1755935595199,0.001,4725.3,4725.2,0.7444]
[1755935597306,0.001,4725.3,4725.1,0.1056]
[1755935597491,0.001,4725.3,4725.1,3.7276]
[1755935599009,0.001,4725.3,4725.1,0.1056]
[1755935599411,0.149,4725.2,4725.1,0.1056]
[1755935600013,0.001,4725.3,4725.1,0.1056]
[1755935600544,0.001,4725.3,4725.2,0.7649]
[1755935602647,0.001,4725.3,4725.2,0.2971]
[1755935602849,0.001,4725.3,4725.2,0.7649]
[1755935612851,0.001,4725.3,4725.2,2.906778]
[1755935613064,0.001,4725.3,4725.2,4.639378]
[1755935616343,0.001,4725.3,4725.2,4.724125]
[1755935617066,0.1,4725.3,4725.2,0.084747]
[1755935617273,0.1,4725.3,4724.8,48.2078]
[1755935617431,0.1,4725.3,4724.9,3.619]
[1755935619563,0.1,4725.3,4724.8,48.2118]
[1755935621474,0.1491,4725.2,4724.8,48.2118]
[1755935622065,0.001,4725.3,4724.8,48.2118]
[1755935622373,0.2385,4724.9,4724.8,48.2118]
[1755935624373,0.6260428,4724.9,4724.8,48.2118]
[1755935625175,0.2385,4724.9,4724.8,48.2118]
[1755935625957,6.8575,4724.9,4724.8,48.2118]
[1755935626486,17.96274464,4724.9,4724.8,31.67518651]
[1755935626689,17.96274464,4724.9,4724.8,30.75001447]
[1755935626690,24.96205623,4724.9,4724.8,30.75001447]
[1755935626980,25.31258545,4724.9,4724.8,30.75001447]
[1755935627144,24.91818545,4724.9,4724.8,30.75001447]
[1755935627340,25.41818545,4724.9,4724.8,30.75001447]
[1755935627574,25.41818545,4724.9,4724.8,23.90830302]
[1755935628448,25.41818545,4724.9,4724.8,17.06659157]
[1755935628666,25.77274747,4724.9,4724.8,17.06659157]
[1755935629358,25.77245235,4724.9,4724.8,17.06659157]
[1755935629553,25.65512769,4724.9,4724.8,10.22488012]
[1755935630663,22.60658728,4724.9,4724.8,3.05204967]
[1755935630876,22.10658728,4724.9,4724.8,3.05204967]
[1755935631458,3.66,4724.8,4724.6,0.004]
[1755935631660,0.8962,4724.7,4724.6,0.004]
[1755935631983,0.66,4724.6,4724.3,0.004]
[1755935632178,0.3418,4724.4,4724.3,0.004]
[1755935632892,3.3418,4724.4,4724.3,0.004]
[1755935633055,6.9608,4724.4,4724.3,0.004]
[1755935633389,7.045617,4724.4,4724.3,0.004]
[1755935634484,7.046617,4724.4,4724.3,0.004]
[1755935635383,16.05186164,4724.4,4724.3,0.004]
[1755935635591,16.71086164,4724.4,4724.3,0.004]
[1755935635794,16.47466164,4724.4,4724.3,0.004]
[1755935636088,16.70866164,4724.4,4724.3,0.004]
[1755935636454,16.72366164,4724.4,4724.3,0.004]
[1755935636695,17.00906867,4724.4,4724.3,0.004]
[1755935637615,3.0,4724.3,4724.2,0.004]
[1755935637809,3.0,4724.3,4723.7,0.004]
[1755935637810,0.66,4724.2,4723.7,0.004]
[1755935638112,0.66,4723.8,4723.7,0.004]
[1755935638291,0.66,4723.6,4722.3,0.4373]
[1755935638491,1.0018,4723.3,4722.3,0.4373]
[1755935638800,7.77875924,4723.3,4722.3,0.4373]
[1755935639182,7.77875924,4723.3,4722.3,0.004]
[1755935639378,8.21605924,4723.3,4722.5,0.4333]
[1755935639918,8.32311011,4723.3,4722.5,0.4333]
[1755935640105,8.32311011,4723.3,4722.3,0.004]
[1755935640307,8.32311011,4723.3,4722.4,0.4333]
[1755935640833,8.33581011,4723.3,4722.3,0.004]
[1755935640993,8.62121714,4723.3,4722.3,0.004]
[1755935641196,8.51416627,4723.3,4722.3,0.004]
[1755935641502,8.86469549,4723.3,4722.3,0.004]
[1755935642298,13.21285933,4723.3,4722.3,0.004]
[1755935642639,10.74516627,4723.3,4722.3,0.004]
[1755935642838,8.51416627,4723.3,4722.3,0.004]
[1755935643009,8.50146627,4723.3,4722.5,0.4333]
[1755935643539,0.93605924,4723.3,4722.6,0.4333]
[1755935643838,4.31985924,4723.3,4722.6,0.4333]
[1755935643999,4.97985924,4723.3,4722.6,0.4333]
[1755935644344,1.35985924,4723.3,4723.2,0.7228]
[1755935644677,0.69985924,4723.3,4723.2,0.7228]
[1755935644837,4.31985924,4723.3,4723.2,0.7228]
[1755935645039,4.97985924,4723.3,4723.2,0.7228]
[1755935645451,4.97985924,4723.3,4723.2,0.2895]
[1755935645761,4.8229,4723.3,4723.2,0.2895]
[1755935647529,4.8229,4723.3,4723.2,0.004]
[1755935647830,7.8229,4723.3,4723.2,0.004]
[1755935652762,7.8239,4723.3,4723.2,0.004]
[1755935653346,16.82914464,4723.3,4723.2,0.004]
[1755935653549,21.91814464,4723.3,4723.2,0.004]
[1755935653864,22.24170926,4723.3,4723.2,0.004]
[1755935654245,22.57302017,4723.3,4723.2,0.004]
[1755935654442,22.24945555,4723.3,4723.2,0.004]
[1755935654764,24.57845555,4723.3,4723.2,0.004]
[1755935655480,26.69561939,4723.3,4723.2,0.004]
[1755935656050,26.92868213,4723.3,4723.2,0.004]
[1755935656246,27.14664675,4723.3,4723.2,0.004]
[1755935656778,27.04864675,4723.3,4723.2,0.004]
[1755935656997,27.64664675,4723.3,4723.2,0.004]
[1755935657659,27.14664675,4723.3,4723.2,0.004]
[1755935657871,34.64664675,4723.3,4723.2,0.004]
[1755935658181,31.77660738,4723.3,4723.2,0.004]
[1755935658734,31.04354464,4723.3,4723.2,0.004]
[1755935658978,22.0383,4723.3,4723.2,0.004]
[1755935659278,19.8073,4723.3,4723.2,0.004]
[1755935660074,16.1873,4723.3,4723.2,0.004]
[1755935660377,19.8073,4723.3,4723.2,0.004]